[Event "Mitropa Cup Women 2024"]
[Site "Apolda"]
[Date "2024.02.22"]
[Round "8.9"]
[White "Cvitan, Ena"]
[Black "Brunello, Marina"]
[Result "1/2-1/2"]
[ECO "E52"]
[WhiteElo "2242"]
[BlackElo "2345"]
[Annotator "TA"]
[PlyCount "78"]
[EventDate "2024.02.15"]
[EventType "team-tourn"]
[EventCountry "GER"]
[SourceTitle "playchess.com"]
[Source "ChessBase"]
[SourceQuality "1"]
[WhiteTeam "Croatia"]
[BlackTeam "Italy"]
[WhiteTeamCountry "CRO"]
[BlackTeamCountry "ITA"]
[TimeControl "40/5400+30:1800+30"]

{[%evp 19,78,27,9,26,12,14,4,-11,-12,-12,2,-1,0,-22,18,28,50,31,64,52,109,81,92,87,114,96,96,97,150,153,155,152,175,110,106,16,11,18,11,-50,-54,-68,23,-28,0,0,0,-60,18,27,24,-558,-558,-542,-501,-520,0,0,0,-493,0]} 1. d4 {[%emt 0:00:11]} Nf6 {[%emt 0:00:09]} 2. c4 {[%emt 0:00:21]} e6 {[%emt 0:00:04]} 3. Nc3 {[%emt 0:00:20]} Bb4 {[%emt 0:00:07]} 4. e3 {[%emt 0:00:06]} O-O {[%emt 0:00:42]} 5. Bd2 {[%emt 0:00:19]} b6 {[%emt 0:00:25]} 6. Nf3 {[%emt 0:00:25]} Bb7 {[%emt 0:00:27]} 7. Bd3 {[%emt 0:00:23]} d5 {[%emt 0:00:07]} 8. cxd5 {[%emt 0:00:25]} exd5 {[%emt 0:00:16]} 9. Rc1 {[%emt 0:00:07]} a6 {[%emt 0:00:28]} 10. O-O {[%emt 0:00:24]} Bd6 {[%emt 0:00:15]} 11. Ne5 {[%emt 0:00:25]} c5 {[%emt 0:00:08][%cal Bc7c5,Bc5c4][%mdl 32]} 12. f4 {[%emt 0:00:45]} Nc6 {[%emt 0:00:05]} 13. Na4 {[%emt 0:00:39] Die Stellung ist ausgeglichen.} c4 $1 {[%emt 0:07:59] Droht ...b5 und aus.} 14. Bb1 {[%emt 0:00:10]} b5 {[%emt 0:00:35]} 15. Nc3 {[%emt 0:00:27]} Ne7 {[%emt 0:08:11]} 16. Qf3 {[%emt 0:00:28] Es drohte Ne4} b4 {[%emt 0:07:26]} 17. Ne2 {[%emt 0:01:41]} Rb8 {[%emt 0:03:49]} 18. Be1 {[%emt 0:06:15]} a5 {[%emt 0:27:02]} 19. Bh4 $1 {[%emt 0:03:21] Schwarz muss nun Bxf6 beachten. Weiß steht deutlich aktiver.} Ng6 {[%emt 0:00:12]} ({Besser ist} 19... Ne4 $1 $14) 20. Bxf6 {[%emt 0:05:35]} Qxf6 {[%emt 0:03:14]} 21. Nd7 {[%emt 0:01:28][%csl LRb8,LRf6,LRf8]} Qe7 {[%emt 0:00:34]} 22. Nxf8 {[%emt 0:03:52]} Nxf8 {[%emt 0:00:03][%cal Bg6f8,Bf8d7,Bd7f6][%mdl 32]} 23. Ng3 {[%emt 0:00:34]} g6 {[%emt 0:01:52]} (23... Qf6 $142) 24. f5 $16 {[%emt 0:06:21]} Re8 {[%emt 0:00:43]} 25. Rce1 {[%emt 0:09:31]} Nd7 {[%emt 0:01:37]} 26. e4 {[%emt 0:11:15]} (26. Bc2 $18) 26... Bxg3 {[%emt 0:03:09]} 27. hxg3 {[%emt 0:00:21]} ({Günstiger ist} 27. Qxg3 $16 dxe4 28. Bc2) 27... dxe4 $11 {[%emt 0:00:14]} 28. Qf4 {[%emt 0:06:14]} Kg7 {[%emt 0:02:35]} 29. Qc7 {[%emt 0:04:14]} (29. g4 $11) 29... Nf6 $15 {[%emt 0:01:13]} 30. Qxc4 {[%emt 0:02:43]} g5 {[%emt 0:04:43]} (30... Qd6 $15 31. fxg6 hxg6) 31. Qb5 {[%emt 0:04:24]} (31. Qc5 $142) 31... Qc7 {[%emt 0:08:16][%mdl 1024] Schwarz hat Kompensation.} 32. Re3 {[%emt 0:02:57]} Rd8 {[%emt 0:01:38]} 33. Qe5 {[%emt 0:04:32]} (33. Qc5 $1 $11 Qd7 34. Rd1 (34. Qxa5 $2 Qxd4 35. Rfe1 Ng4 $19)) 33... Qb6 {[%emt 0:03:28]} (33... Qc4 $1 $15 34. b3 (34. Bxe4 Re8 $17) (34. Qxa5 $2 Qxd4 35. Rfe1 Ng4 $19) 34... Qxd4 35. Qxd4 Rxd4) 34. Qc5 $1 $11 {[%emt 0:03:52]} (34. Bxe4 $2 {geht unter.} Re8 (34... Qxd4 $2 35. Qxd4 Rxd4 36. Bxb7 $18) 35. Qc5 (35. Qxe8 $2 Nxe8 36. Bxb7 Qxd4 $19) 35... Qxc5 36. dxc5 Nxe4 $19 (36... Bxe4 37. Rfe1 $17)) 34... Qa6 {[%emt 0:01:27] Zielt auf ...Rd5 ab.} 35. Rd1 $2 {[%emt 0:05:49][%mdl 8192] [#]} (35. Bd3 $1 $11 {und Weiss ist OK.} Qa8 (35... exd3 36. Re6 $16) 36. Bc4) 35... Rc8 $1 $19 {[%emt 0:02:46]} 36. Qe5 {[%emt 0:02:09]} Re8 {[%emt 0:00:07]} 37. Qc5 {[%emt 0:00:18]} Rc8 {[%emt 0:00:09]} 38. Qe5 {[%emt 0:00:06]} Re8 {[%emt 0:00:10]} 39. Qc5 {[%emt 0:01:36] [#]} Rc8 $2 {[%emt 0:02:07] Schwarz hat seine Chance genutzt.   Gewichteter Fehlerwert: Weiß=0.29 (präzise) /Schwarz=0.36.  Verlustzug:     	Weiß=1     	---        Gewinn verpasst:   	---       	Schwarz=1     Fehler:       	Weiß=5     	Schwarz=4     Ungenau:       	---       	Schwarz=4     OK:         	Weiß=15    	Schwarz=11    Bester:       	Weiß=1     	Schwarz=2     Stark:        	Weiß=2     	Schwarz=2} (39... Ng4 $1 $19 40. f6+ Qxf6) 1/2-1/2

[Event "Mitropa Cup Women 2024"]
[Site "Apolda"]
[Date "2024.02.22"]
[Round "8.10"]
[White "Zimina, Olga"]
[Black "Medic, Mirjana"]
[Result "1-0"]
[ECO "A07"]
[WhiteElo "2291"]
[BlackElo "2151"]
[Annotator "TA"]
[PlyCount "73"]
[EventDate "2024.02.15"]
[EventType "team-tourn"]
[EventCountry "GER"]
[SourceTitle "playchess.com"]
[Source "ChessBase"]
[SourceQuality "1"]
[WhiteTeam "Italy"]
[BlackTeam "Croatia"]
[WhiteTeamCountry "ITA"]
[BlackTeamCountry "CRO"]
[TimeControl "40/5400+30:1800+30"]

{[%evp 10,73,27,23,27,0,0,0,20,23,41,21,41,21,31,39,103,88,108,116,120,112,128,124,129,144,163,150,169,158,150,161,221,157,162,145,347,358,341,323,360,355,348,364,350,363,427,440,485,497,605,604,551,575,545,520,583,595,704,700,762,751,1168,1154,982,815]} 1. Nf3 {[%emt 0:00:04]} d5 {[%emt 0:00:12]} 2. g3 {[%emt 0:00:04]} Nf6 {[%emt 0:00:13]} 3. Bg2 {[%emt 0:00:11]} c6 {[%emt 0:00:35]} 4. O-O {[%emt 0:00:14]} Bf5 {[%emt 0:01:39]} 5. d3 {[%emt 0:05:02]} h6 {[%emt 0:02:41]} 6. Nbd2 {[%emt 0:00:14][%cal Oe2e4]} Nbd7 {[%emt 0:01:30]} 7. Nh4 {[%emt 0:01:38][%cal Bf3h4,Bh4f5,Bf5e3][%mdl 32]} Bh7 {[%emt 0:00:38]} 8. e4 {[%emt 0:00:27]} dxe4 {[%emt 0:01:48] The position is equal.} 9. dxe4 {[%emt 0:01:10]} e5 {[%emt 0:02:48]} 10. Qe2 {[%emt 0:01:54]} Qc7 {[%emt 0:04:19]} 11. a4 {[%emt 0:00:55]} a5 {[%emt 0:04:43]} 12. Nf5 {[%emt 0:05:10]} g6 {[%emt 0:03:20]} (12... Bxf5 $14 13. exf5 Be7) 13. Ne3 $16 {[%emt 0:03:17]} Bg7 {[%emt 0:04:29]} 14. b3 {[%emt 0:02:11]} O-O {[%emt 0:01:20]} 15. Bb2 {[%emt 0:08:06]} Rfe8 {[%emt 0:02:16]} 16. Rad1 {[%emt 0:02:47]} Nc5 {[%emt 0:04:05] [#]} 17. f3 $1 {[%emt 0:19:06]} Kh8 {[%emt 0:00:44]} 18. Ndc4 {[%emt 0:00:29]} Nfd7 {[%emt 0:04:40]} 19. Bh3 {[%emt 0:06:34]} Bg8 {[%emt 0:03:09]} 20. Qd2 {[%emt 0:00:23][%cal Od2d6] White has more active pieces.} Nf8 {[%emt 0:08:29]} (20... f6 $142) 21. Ba3 {[%emt 0:10:39]} Red8 {[%emt 0:03:15]} 22. Qf2 {[%emt 0:02:56]} Nfd7 $2 {[%emt 0:10:24] [#] This costs Black the game.} (22... Nfe6 $16 23. Bxe6 Nxe6) 23. Rxd7 $1 $18 {[%emt 0:14:47][%mdl 512]} Nxd7 {[%emt 0:02:21]} 24. Bd6 {[%emt 0:00:05]} Qc8 {[%emt 0:00:16]} 25. Nb6 {[%emt 0:00:24]} Nxb6 {[%emt 0:00:02]} 26. Bxc8 {[%emt 0:00:05]} Raxc8 {[%emt 0:00:12]} 27. Ba3 {[%emt 0:00:14]} c5 {[%emt 0:04:31]} 28. Qe1 {[%emt 0:00:57] White is clearly winning.} Bf8 {[%emt 0:03:12]} 29. Qxa5 {[%emt 0:00:21]} Rc6 {[%emt 0:02:47] [#]} 30. Nd5 $1 {[%emt 0:02:54]} Ra8 {[%emt 0:02:47]} 31. Qb5 {[%emt 0:04:13]} Nxd5 {[%emt 0:02:27]} 32. Qxb7 {[%emt 0:00:16]} Rcc8 {[%emt 0:00:02]} 33. exd5 {[%emt 0:03:15][%cal Be4d5,Bd5d6][%mdl 32]} f6 {[%emt 0:00:26]} 34. Rd1 {[%emt 0:01:04]} Rab8 {[%emt 0:00:31]} 35. Qa6 {[%emt 0:00:06]} Kg7 {[%emt 0:00:10]} 36. d6 {[%emt 0:00:25]} Rd8 {[%emt 0:02:38]} 37. Bxc5 {[%emt 0:00:14] Weighted Error Value: White=0.06 (flawless) /Black=0.35.  Loses game:     	---       	Black=1      Mistake:       	---       	Black=2      Inaccurate:     	White=1     	---        OK:         	White=16    	Black=7      Best:        	White=1     	---        Strong:       	White=1     	---} 1-0

[Event "Mitropa Cup Women 2024"]
[Site "Apolda"]
[Date "2024.02.22"]
[Round "8.11"]
[White "Vujnovic, Patricija"]
[Black "Gueci, Tea"]
[Result "0-1"]
[ECO "D01"]
[WhiteElo "2104"]
[BlackElo "2193"]
[Annotator "RC"]
[PlyCount "66"]
[EventDate "2024.02.15"]
[EventType "team-tourn"]
[EventCountry "GER"]
[SourceTitle "playchess.com"]
[Source "ChessBase"]
[SourceQuality "1"]
[WhiteTeam "Croatia"]
[BlackTeam "Italy"]
[WhiteTeamCountry "CRO"]
[BlackTeamCountry "ITA"]
[TimeControl "40/5400+30:1800+30"]

1. d4 {[%emt 0:00:02]} Nf6 {[%emt 0:00:03]} 2. Nc3 {[%emt 0:00:31]} d5 {[%emt 0:00:03]} 3. Bg5 {[%emt 0:00:09]} Nbd7 {[%emt 0:00:05]} 4. f3 {[%emt 0:01:01]} c5 {[%emt 0:03:40]} 5. e4 {[%emt 0:00:48]} cxd4 {[%emt 0:08:43]} 6. Qxd4 {[%emt 0:00:51]} e5 {[%emt 0:05:32]} 7. Qa4 {[%emt 0:00:30]} d4 {[%emt 0:04:38]} 8. Nd5 {[%emt 0:02:34]} Be7 {[%emt 0:00:45]} 9. Bxf6 {[%emt 0:08:28]} Bxf6 {[%emt 0:01:41]} 10. Bb5 {[%emt 0:02:27]} O-O {[%emt 0:01:34]} 11. Bxd7 {[%emt 0:03:41]} Bh4+ {[%emt 0:03:51]} 12. g3 {[%emt 0:00:49]} Bxd7 {[%emt 0:00:08]} 13. Qa3 {[%emt 0:04:09]} Bf6 {[%emt 0:14:27]} 14. Ne2 {[%emt 0:00:48]} Bb5 {[%emt 0:04:24]} 15. Rd1 {[%emt 0:01:59]} Rc8 {[%emt 0:07:37]} 16. Rd2 {[%emt 0:06:58]} Bg5 {[%emt 0:00:54]} 17. f4 {[%emt 0:00:29]} exf4 {[%emt 0:01:00]} 18. gxf4 {[%emt 0:03:39]} Bh4+ {[%emt 0:03:22]} 19. Kd1 {[%emt 0:01:51]} Re8 {[%emt 0:08:25]} 20. Nxd4 {[%emt 0:03:53]} Rxe4 {[%emt 0:06:03]} 21. Nxb5 {[%emt 0:02:02]} Qe8 {[%emt 0:00:32]} 22. c4 {[%emt 0:05:01]} Rcxc4 {[%emt 0:03:00]} 23. Ndc3 {[%emt 0:13:11]} Rxf4 {[%emt 0:05:14]} 24. Nd6 {[%emt 0:02:15]} Qc6 {[%emt 0:00:39]} 25. Rg1 {[%emt 0:08:35]} Rcd4 {[%emt 0:00:26]} 26. Ne2 {[%emt 0:02:35]} Rxd2+ {[%emt 0:01:29]} 27. Kxd2 {[%emt 0:00:02]} Rf6 {[%emt 0:00:24]} 28. Nxf7 {[%emt 0:07:00]} Rxf7 {[%emt 0:00:52]} 29. Rg4 {[%emt 0:01:53]} Rd7+ {[%emt 0:02:55]} 30. Nd4 {[%emt 0:00:19]} Bf6 {[%emt 0:00:48]} 31. Qxa7 {[%emt 0:00:42]} h5 {[%emt 0:01:48]} 32. Qb8+ {[%emt 0:00:29]} Kh7 {[%emt 0:00:28]} 33. Ke3 {[%emt 0:05:29]} Qc1+ {[%emt 0:00:27]} 0-1

[Event "Mitropa Cup Women 2024"]
[Site "Apolda"]
[Date "2024.02.22"]
[Round "8.12"]
[White "Cassi, Elisa"]
[Black "Mihaljevic, Eva"]
[Result "1-0"]
[ECO "B51"]
[WhiteElo "2033"]
[BlackElo "2043"]
[Annotator "NA RC"]
[PlyCount "71"]
[EventDate "2024.02.15"]
[EventType "team-tourn"]
[EventCountry "GER"]
[SourceTitle "playchess.com"]
[Source "ChessBase"]
[SourceQuality "1"]
[WhiteTeam "Italy"]
[BlackTeam "Croatia"]
[WhiteTeamCountry "ITA"]
[BlackTeamCountry "CRO"]
[TimeControl "40/5400+30:1800+30"]

1. e4 {[%emt 0:00:32]} c5 {[%emt 0:00:08]} 2. Nf3 {[%emt 0:00:06]} d6 {[%emt 0:00:07]} 3. Bb5+ {[%emt 0:00:04]} Nd7 {[%emt 0:00:06]} 4. Ba4 {[%emt 0:00:10]} Ngf6 {[%emt 0:00:14]} 5. O-O {[%emt 0:00:07]} e6 {[%emt 0:00:45]} 6. Re1 {[%emt 0:00:25]} a6 {[%emt 0:00:44]} 7. c4 {[%emt 0:01:01]} Be7 {[%emt 0:00:21]} 8. Nc3 {[%emt 0:00:15]} O-O {[%emt 0:00:22]} 9. d3 {[%emt 0:02:17]} Qc7 {[%emt 0:09:15]} 10. h3 {[%emt 0:00:45]} Rd8 {[%emt 0:04:20]} 11. a3 {[%emt 0:03:37]} Nf8 {[%emt 0:09:07]} 12. Bd2 {[%emt 0:11:13]} Bd7 {[%emt 0:04:22]} 13. b4 {[%emt 0:02:03]} Bxa4 {[%emt 0:10:00]} 14. Qxa4 {[%emt 0:01:59]} N6d7 {[%emt 0:01:55]} 15. Qb3 {[%emt 0:09:41]} Ne5 {[%emt 0:05:32]} 16. Re3 {[%emt 0:20:25]} Nfg6 {[%emt 0:06:00]} 17. g3 {[%emt 0:02:03]} h5 {[%emt 0:07:19]} 18. Qd1 {[%emt 0:11:07]} h4 {[%emt 0:04:26]} 19. Nxh4 {[%emt 0:03:13]} Bxh4 {[%emt 0:15:15]} 20. gxh4 {[%emt 0:00:25]} Qe7 {[%emt 0:00:54]} 21. h5 {[%emt 0:02:12]} Nf4 {[%emt 0:02:25]} 22. Rg3 {[%emt 0:03:51]} Nexd3 {[%emt 0:03:48]} 23. Bxf4 {[%emt 0:09:53]} Nxf4 {[%emt 0:00:06]} 24. Qg4 {[%emt 0:00:05]} Qf6 {[%emt 0:01:12]} 25. Rf3 {[%emt 0:00:12]} e5 {[%emt 0:04:18]} 26. Nd5 {[%emt 0:03:00]} Qe6 {[%emt 0:00:32]} 27. Nxf4 {[%emt 0:04:28]} exf4 {[%emt 0:00:31]} 28. Qxf4 {[%emt 0:00:19]} cxb4 {[%emt 0:01:45]} 29. axb4 {[%emt 0:00:53]} Rac8 {[%emt 0:00:20]} 30. h6 {[%emt 0:02:16]} gxh6 {[%emt 0:00:53]} 31. Qh4 {[%emt 0:03:22]} Kg7 {[%emt 0:03:46]} 32. Kh1 {[%emt 0:00:40]} Re8 {[%emt 0:00:59]} 33. Rg1+ {[%emt 0:00:49]} Kf8 {[%emt 0:01:38]} 34. Rfg3 {[%emt 0:00:54]} f5 {[%emt 0:01:12]} 35. f3 {[%emt 0:01:21]} Rxc4 {[%emt 0:01:28]} 36. Rg6 {[%emt 0:00:38]} 1-0

[Event "Mitropa Cup Women 2024"]
[Site "Apolda"]
[Date "2024.02.22"]
[Round "8.13"]
[White "Iglesias, Yosha"]
[Black "Novosadova, Kristyna"]
[Result "1-0"]
[ECO "A43"]
[WhiteElo "2260"]
[BlackElo "2188"]
[Annotator "TA"]
[PlyCount "55"]
[EventDate "2024.02.15"]
[EventType "team-tourn"]
[EventCountry "GER"]
[SourceTitle "playchess.com"]
[Source "ChessBase"]
[SourceQuality "1"]
[WhiteTeam "France"]
[BlackTeam "Czech Republic"]
[WhiteTeamCountry "FRA"]
[BlackTeamCountry "CZE"]
[TimeControl "40/5400+30:1800+30"]

{[%evp 12,55,27,9,18,15,23,12,81,39,94,103,98,80,95,91,100,96,150,144,161,117,117,114,127,104,155,125,127,119,127,129,202,185,338,339,447,423,687,702,733,733,737,686,771,750]} 1. d4 {[%emt 0:00:03]} Nf6 {[%emt 0:00:06]} 2. Nf3 {[%emt 0:00:05]} c5 {[%emt 0:00:06]} 3. d5 {[%emt 0:00:15]} g6 {[%emt 0:00:38]} 4. Nc3 {[%emt 0:01:15]} d6 {[%emt 0:00:25]} 5. e4 {[%emt 0:00:40]} Bg7 {[%emt 0:00:08]} 6. h3 {[%emt 0:02:27]} O-O {[%emt 0:01:16]} 7. a4 {[%emt 0:00:13]} Na6 {[%emt 0:02:27]} 8. Bc4 {[%emt 0:00:32]} Nb4 {[%emt 0:02:08]} 9. O-O {[%emt 0:00:55]} b6 {[%emt 0:01:43]} (9... e6 $11 {remains equal.}) 10. Re1 {[%emt 0:00:47]} Nd7 {[%emt 0:14:30]} (10... e6 $14) 11. Bg5 $16 {[%emt 0:05:09] Black is weak on the light squares} Ba6 {[%emt 0:01:41]} 12. Bb5 {[%emt 0:01:20]} Bb7 {[%emt 0:06:58][%cal Ba6b7,Bb7c8,Bc8d7][%mdl 32]} 13. Qd2 {[%emt 0:00:54]} Ne5 {[%emt 0:05:59]} 14. Nxe5 {[%emt 0:00:59]} dxe5 {[%emt 0:00:19] [#]} ({Black should try} 14... Bxe5 15. Nd1 Bg7) 15. a5 $1 {[%emt 0:07:26][%cal Ba4a5,Ba5a6][%mdl 544] White is more active.} f6 {[%emt 0:04:23]} (15... h6 16. Be3) 16. a6 {[%emt 0:10:00]} Bc8 {[%emt 0:07:21]} 17. Bh4 {[%emt 0:05:20]} Bd7 {[%emt 0:04:48]} 18. Bc4 {[%emt 0:11:59]} Qc8 {[%emt 0:05:42]} (18... Qe8 $142 19. f3 e6) 19. Ra3 {[%emt 0:06:49]} e6 {[%emt 0:05:05]} 20. Nb5 {[%emt 0:07:41] Black must now prevent Nd6.} exd5 {[%emt 0:05:44]} 21. exd5 {[%emt 0:01:12]} g5 {[%emt 0:02:58]} (21... Bxb5 $16 22. Bxb5 Qf5) 22. Bg3 $18 {[%emt 0:01:19]} Qe8 $2 {[%emt 0:14:15]} (22... Kh8 23. c3 Nxa6) 23. Nc7 {[%emt 0:06:20][%csl LRa8,LRe8]} Qg6 {[%emt 0:00:04]} 24. Nxa8 {[%emt 0:00:51] White is clearly winning.} Qxc2 {[%emt 0:01:34]} (24... Rxa8 $142 25. c3 Nc2 26. d6+ Kh8) 25. Qxc2 {[%emt 0:02:35]} Nxc2 {[%emt 0:00:09] [#]} 26. Nxb6 $1 {[%emt 0:00:32]} axb6 {[%emt 0:02:38]} (26... Be8 27. Nc8) 27. d6+ {[%emt 0:00:41]} Kh8 {[%emt 0:00:04] [#]} 28. Bd5 $1 {[%emt 0:02:21] Wards off Ra8.   Weighted Error Value: White=0.13 (very precise) /Black=0.56.  Mistake:       	---       	Black=7      Inaccurate:     	White=1     	Black=1      OK:         	White=6     	Black=6      Best:        	---       	Black=1} 1-0

[Event "Mitropa Cup Women 2024"]
[Site "Apolda"]
[Date "2024.02.22"]
[Round "8.14"]
[White "Koubova, Anna Marie"]
[Black "Schippke, Manon"]
[Result "0-1"]
[ECO "A10"]
[WhiteElo "2100"]
[BlackElo "2162"]
[Annotator "RC"]
[PlyCount "111"]
[EventDate "2024.02.15"]
[EventType "team-tourn"]
[EventCountry "GER"]
[SourceTitle "playchess.com"]
[Source "ChessBase"]
[SourceQuality "1"]
[WhiteTeam "Czech Republic"]
[BlackTeam "France"]
[WhiteTeamCountry "CZE"]
[BlackTeamCountry "FRA"]
[TimeControl "40/5400+30:1800+30"]

1. Nf3 {[%emt 0:00:07]} e6 {[%emt 0:00:11]} 2. c4 {[%emt 0:01:05]} f5 {[%emt 0:00:37]} 3. d3 {[%emt 0:00:31]} Nf6 {[%emt 0:00:33]} 4. Nc3 {[%emt 0:00:29]} d6 {[%emt 0:06:33]} 5. e4 {[%emt 0:00:54]} e5 {[%emt 0:06:39]} 6. exf5 {[%emt 0:06:15]} Bxf5 {[%emt 0:01:23]} 7. d4 {[%emt 0:01:07]} Nbd7 {[%emt 0:16:57]} 8. Be2 {[%emt 0:03:33]} c6 {[%emt 0:05:41]} 9. O-O {[%emt 0:05:04]} Qc7 {[%emt 0:04:22]} 10. b4 {[%emt 0:03:44]} Be7 {[%emt 0:06:53]} 11. Qb3 {[%emt 0:12:51]} O-O {[%emt 0:09:52]} 12. Bb2 {[%emt 0:03:05]} e4 {[%emt 0:02:06]} 13. Nh4 {[%emt 0:03:42]} Be6 {[%emt 0:00:09]} 14. d5 {[%emt 0:01:31]} Bf7 {[%emt 0:00:03]} 15. Nf5 {[%emt 0:07:58]} Ne5 {[%emt 0:02:20]} 16. Ng3 {[%emt 0:02:39]} b5 {[%emt 0:02:35]} 17. Ncxe4 {[%emt 0:09:18]} Nxe4 {[%emt 0:02:04]} 18. Nxe4 {[%emt 0:03:04]} bxc4 {[%emt 0:00:31]} 19. Bxc4 {[%emt 0:00:57]} Nxc4 {[%emt 0:00:22]} 20. Qxc4 {[%emt 0:00:17]} Bxd5 {[%emt 0:00:08]} 21. Qd4 {[%emt 0:02:01]} Rf7 {[%emt 0:00:07]} 22. Nc3 {[%emt 0:08:17]} Be6 {[%emt 0:01:18]} 23. b5 {[%emt 0:06:36]} Rb8 {[%emt 0:04:59]} 24. Rac1 {[%emt 0:05:10]} Bf6 {[%emt 0:05:34]} 25. Qe4 {[%emt 0:03:51]} Re7 {[%emt 0:01:11]} 26. Ba3 {[%emt 0:00:36]} d5 {[%emt 0:13:41]} 27. Qe2 {[%emt 0:02:32]} c5 {[%emt 0:03:26]} 28. Na4 {[%emt 0:00:34]} Bd7 {[%emt 0:00:30]} 29. Qd2 {[%emt 0:02:36]} Rxb5 {[%emt 0:02:35]} 30. Nxc5 {[%emt 0:01:29]} Qe5 {[%emt 0:01:38]} 31. Nd3 {[%emt 0:03:25]} Qe2 {[%emt 0:00:06]} 32. Qd1 {[%emt 0:00:39]} Qxd1 {[%emt 0:00:51]} 33. Rfxd1 {[%emt 0:00:12]} Re2 {[%emt 0:00:05]} 34. Nc5 {[%emt 0:00:41]} Bc6 {[%emt 0:00:45]} 35. Na6 {[%emt 0:00:34]} Rxa2 {[%emt 0:00:35]} 36. Rxc6 {[%emt 0:00:16]} Rxa3 {[%emt 0:00:02]} 37. Nc7 {[%emt 0:00:35]} Rd3 {[%emt 0:00:06]} 38. Re1 {[%emt 0:00:20]} Rb6 {[%emt 0:00:25]} 39. Rc5 {[%emt 0:00:20]} d4 {[%emt 0:01:05]} 40. Nd5 {[%emt 0:00:38]} Rb7 {[%emt 0:00:54]} 41. Nxf6+ {[%emt 0:03:33]} gxf6 {[%emt 0:00:03]} 42. Rd5 {[%emt 0:00:56]} Kf7 {[%emt 0:07:14]} 43. g3 {[%emt 0:05:17]} Re7 {[%emt 0:09:45]} 44. Rxe7+ {[%emt 0:02:32]} Kxe7 {[%emt 0:00:01]} 45. Ra5 {[%emt 0:00:34]} Rd1+ {[%emt 0:01:47]} 46. Kg2 {[%emt 0:00:48]} d3 {[%emt 0:04:15]} 47. Rxa7+ {[%emt 0:01:04]} Ke6 {[%emt 0:00:03]} 48. Kf3 {[%emt 0:02:49]} Re1 {[%emt 0:01:30]} 49. Ra2 {[%emt 0:05:51]} Kd5 {[%emt 0:02:42]} 50. Kf4 {[%emt 0:00:23]} Kc4 {[%emt 0:00:03]} 51. Kf5 {[%emt 0:00:14]} Re2 {[%emt 0:02:03]} 52. Ra7 {[%emt 0:02:43]} Rxf2+ {[%emt 0:00:09]} 53. Ke4 {[%emt 0:02:25]} d2 {[%emt 0:00:31]} 54. Rd7 {[%emt 0:00:44]} Kc3 {[%emt 0:00:47]} 55. h4 {[%emt 0:00:25]} Rf1 {[%emt 0:00:32]} 56. Rd3+ {[%emt 0:02:22]} 0-1

[Event "Mitropa Cup Women 2024"]
[Site "Apolda"]
[Date "2024.02.22"]
[Round "8.15"]
[White "Navrotescu, Andreea"]
[Black "Lhotska, Anna"]
[Result "1-0"]
[ECO "E68"]
[WhiteElo "2222"]
[BlackElo "2053"]
[Annotator "RC"]
[PlyCount "91"]
[EventDate "2024.02.15"]
[EventType "team-tourn"]
[EventCountry "GER"]
[SourceTitle "playchess.com"]
[Source "ChessBase"]
[SourceQuality "1"]
[WhiteTeam "France"]
[BlackTeam "Czech Republic"]
[WhiteTeamCountry "FRA"]
[BlackTeamCountry "CZE"]
[TimeControl "40/5400+30:1800+30"]

1. d4 {[%emt 0:00:03]} Nf6 {[%emt 0:00:05]} 2. c4 {[%emt 0:00:05]} g6 {[%emt 0:00:05]} 3. g3 {[%emt 0:06:13]} Bg7 {[%emt 0:00:16]} 4. Bg2 {[%emt 0:00:12]} O-O {[%emt 0:00:08]} 5. Nf3 {[%emt 0:00:09]} d6 {[%emt 0:01:00]} 6. Nc3 {[%emt 0:00:11]} Nbd7 {[%emt 0:01:03]} 7. O-O {[%emt 0:00:18]} e5 {[%emt 0:00:09]} 8. e4 {[%emt 0:00:16]} exd4 {[%emt 0:00:36]} 9. Nxd4 {[%emt 0:00:07]} Re8 {[%emt 0:00:17]} 10. h3 {[%emt 0:04:25]} a6 {[%emt 0:00:55]} 11. Be3 {[%emt 0:00:52]} Rb8 {[%emt 0:03:47]} 12. a4 {[%emt 0:01:45]} Ne5 {[%emt 0:02:42]} 13. b3 {[%emt 0:00:23]} Bd7 {[%emt 0:11:12]} 14. Qc2 {[%emt 0:18:48]} c5 {[%emt 0:09:14]} 15. Nde2 {[%emt 0:00:12]} Nc6 {[%emt 0:00:06]} 16. Rad1 {[%emt 0:01:47]} Nb4 {[%emt 0:01:58]} 17. Qc1 {[%emt 0:02:40]} Qc7 {[%emt 0:05:31]} 18. Qd2 {[%emt 0:06:03]} Qc8 {[%emt 0:16:08]} 19. g4 {[%emt 0:10:51]} Bc6 {[%emt 0:01:26]} 20. Ng3 {[%emt 0:09:56]} Rd8 {[%emt 0:04:24]} 21. Bg5 {[%emt 0:05:21]} Rd7 {[%emt 0:05:19]} 22. Nd5 {[%emt 0:04:59]} Bxd5 {[%emt 0:00:38]} 23. exd5 {[%emt 0:00:02]} b5 {[%emt 0:04:09]} 24. axb5 {[%emt 0:02:14]} axb5 {[%emt 0:00:05]} 25. Rfe1 {[%emt 0:00:13]} bxc4 {[%emt 0:01:06]} 26. bxc4 {[%emt 0:00:02]} Ra8 {[%emt 0:00:12]} 27. Qf4 {[%emt 0:04:19]} Ne8 {[%emt 0:00:32]} 28. Re2 {[%emt 0:09:55]} Rda7 {[%emt 0:04:58]} 29. Bf1 {[%emt 0:07:15]} f6 {[%emt 0:08:49]} 30. Rde1 {[%emt 0:01:57]} Qd7 {[%emt 0:00:24]} 31. Bh6 {[%emt 0:02:04]} g5 {[%emt 0:00:26]} 32. Qf5 {[%emt 0:01:09]} Bxh6 {[%emt 0:03:25]} 33. Qxd7 {[%emt 0:00:11]} Rxd7 {[%emt 0:00:05]} 34. Rxe8+ {[%emt 0:00:14]} Rxe8 {[%emt 0:00:08]} 35. Rxe8+ {[%emt 0:00:01]} Kf7 {[%emt 0:01:50]} 36. Ra8 {[%emt 0:00:02]} Bf8 {[%emt 0:01:51]} 37. Bg2 {[%emt 0:00:24]} Nd3 {[%emt 0:03:20]} 38. Be4 {[%emt 0:01:55]} Ne5 {[%emt 0:00:21]} 39. Bf5 {[%emt 0:00:16]} Rb7 {[%emt 0:04:11]} 40. Be6+ {[%emt 0:00:08]} Kg6 {[%emt 0:07:39]} 41. Rxf8 {[%emt 0:30:36]} Nf3+ {[%emt 0:23:42]} 42. Kg2 {[%emt 0:01:28]} Nh4+ {[%emt 0:00:12]} 43. Kf1 {[%emt 0:00:09]} Rb1+ {[%emt 0:00:04]} 44. Ke2 {[%emt 0:00:08]} Rb2+ {[%emt 0:00:09]} 45. Kd3 {[%emt 0:00:43]} Rxf2 {[%emt 0:00:17]} 46. Rg8+ {[%emt 0:00:56]} 1-0